fUST/lending_fUST_20260602
["ID","MTS","AMOUNT","RATE_DAILY","PERIOD"]
[423738847,1780357832000,-500.0,0.00012597,2]
[423738860,1780357832000,-329.36479852,0.00012598,2]
[423738858,1780357832000,-319.37202997,0.00012598,2]
[423738851,1780357832000,-500.0,0.00012597,2]
[423738859,1780357832000,-2971.83329643,0.00012598,2]
[423738854,1780357832000,-500.0,0.00012597,2]
[423738856,1780357832000,-500.0,0.00012597,2]
[423738852,1780357832000,-639.38700761,0.00012597,2]
[423738850,1780357832000,-500.0,0.00012597,2]
[423738857,1780357832000,-484.04374977,0.00012597,2]
[423738845,1780357832000,-500.0,0.00012597,2]
[423738928,1780357838000,-21133.16630541,0.00012598,2]
[423738927,1780357838000,-4897.15549784,0.00012598,2]
[423738930,1780357840000,-7285.50019759,0.00012598,2]
[423738951,1780357847000,-1718.68141975,0.00012472,2]
[423738950,1780357847000,-776.39520267,0.00012472,2]
[423739032,1780358617000,-416.61834103,0.0001069,2]
[423739038,1780358827000,-637.31820738,9.957e-05,2]
[423739039,1780358829000,-432.85875169,9.957e-05,2]
[423739040,1780358833000,-154.51335139,9.957e-05,2]
[423739041,1780358835000,-796.70344055,9.957e-05,2]
[423739042,1780358837000,-154.47657397,9.957e-05,2]
[423739043,1780358905000,1626.46449273,0.00022056,120]
[423739047,1780358999000,5000.0,0.0001,10]
[423739048,1780359007000,422.97997132,0.0001,10]
[423739049,1780359023000,5000.0,0.0001,10]
[423739077,1780359032000,-500.0,0.00013424,2]
[423739076,1780359032000,-500.0,0.00013424,2]
[423739074,1780359032000,-1518.98014016,0.000134,2]
[423739072,1780359032000,-1322.94145965,0.000134,2]
[423739075,1780359032000,-500.0,0.00013424,2]
[423739073,1780359032000,-1424.11580401,0.000134,2]
[423739071,1780359032000,-500.0,0.0001331,2]
[423739069,1780359032000,-300.0,0.0001286,2]
[423739064,1780359032000,-2710.66313521,0.00012609,2]
[423739065,1780359032000,-511.21216583,0.00012609,2]
[423739061,1780359032000,-300.0,0.00012608,2]
[423739060,1780359032000,-1285.5035055,0.0001258,2]
[423739063,1780359032000,-163.8954543,0.00012609,2]
[423739059,1780359032000,-268.33136501,0.000125,7]
[423739062,1780359032000,-1180.0,0.00012608,2]
[423739057,1780359032000,-178.88757666,0.00011805,7]
[423739068,1780359032000,-387.69139935,0.00012857,2]
[423739066,1780359032000,-433.2677842,0.00012609,2]
[423739067,1780359032000,-937.67840196,0.00012609,2]
[423739058,1780359032000,-377.85575424,0.00012214,2]
[423739055,1780359032000,-164.80993619,9.559e-05,2]
[423739056,1780359032000,-283.5164398,0.00011294,2]
[423739070,1780359032000,-514.49407,0.00013239,2]
[423739080,1780359032000,-500.0,0.00013424,2]
[423739078,1780359032000,-500.0,0.00013424,2]
[423739079,1780359032000,-500.0,0.00013424,2]
[423739104,1780359032000,-9129.48029414,0.00013498,2]
[423739098,1780359032000,-500.0,0.00013424,2]
[423739102,1780359032000,-152.0,0.00013491,2]
[423739103,1780359032000,-152.0,0.00013491,2]
[423739101,1780359032000,-152.0,0.0001347,2]
[423739100,1780359032000,-368.83374241,0.00013424,2]
[423739099,1780359032000,-500.0,0.00013424,2]
[423739097,1780359032000,-500.0,0.00013424,2]
[423739089,1780359032000,-500.0,0.00013424,2]
[423739090,1780359032000,-500.0,0.00013424,2]
[423739088,1780359032000,-340.08674248,0.00013424,2]
[423739091,1780359032000,-500.0,0.00013424,2]
[423739092,1780359032000,-500.0,0.00013424,2]
[423739085,1780359032000,-376.78242841,0.00013424,2]
[423739083,1780359032000,-500.0,0.00013424,2]
[423739087,1780359032000,-159.91325752,0.00013424,2]
[423739086,1780359032000,-500.0,0.00013424,2]
[423739096,1780359032000,-500.0,0.00013424,2]
[423739095,1780359032000,-500.0,0.00013424,2]
[423739094,1780359032000,-360.97986297,0.00013424,2]
[423739084,1780359032000,-123.21757159,0.00013424,2]
[423739081,1780359032000,-500.0,0.00013424,2]
[423739082,1780359032000,-500.0,0.00013424,2]
[423739093,1780359032000,-500.0,0.00013424,2]
[423739107,1780359038000,-4991.96987597,0.00013498,2]
[423739109,1780359038000,-10209.98579081,0.00013498,2]
[423739110,1780359038000,-143803.01105504,0.00013498,2]
[423739108,1780359038000,-31954.42952058,0.00013498,2]
[423739111,1780359038000,-836.73170697,0.00013498,2]
[423739115,1780359040000,-1776.13358044,0.00013498,2]
[423739114,1780359040000,-369.61000001,0.00013498,2]
[423739127,1780359043000,-7257.39483781,0.00013498,2]
[423739132,1780359046000,-209.56441638,0.00013424,2]
[423739130,1780359046000,-500.0,0.00013424,2]
[423739133,1780359046000,-290.43558362,0.00013424,2]
[423739131,1780359046000,-500.0,0.00013424,2]
[423739135,1780359046000,-500.0,0.00013424,2]
[423739136,1780359046000,-500.0,0.00013424,2]
[423739138,1780359046000,-9039.81525609,0.00013498,2]
[423739140,1780359046000,-106516.39818714,0.00013498,2]
[423739134,1780359046000,-500.0,0.00013424,2]
[423739222,1780359709000,6425.79802562,0.00023193,120]
[423739233,1780359816000,5000.0,0.0001,10]
[423739235,1780359838000,4577.02002868,0.0001,10]
[423739242,1780359982000,-270.58812025,9.602e-05,2]
[423739244,1780359986000,-372.05544478,9.602e-05,2]
[423739245,1780359990000,-173.994366,9.602e-05,2]
[423739246,1780359993000,-151.0,9.602e-05,2]
[423739249,1780360042000,-364.98884934,9.506e-05,2]
[423739250,1780360045000,-349.11268212,9.506e-05,2]
[423739254,1780360147000,-278.80805309,9.023e-05,2]
[423739255,1780360177000,-809.91780441,8.933e-05,2]
[423739256,1780360179000,-251.59692967,8.933e-05,2]
[423739259,1780360222000,-569.24538781,8.844e-05,2]
[423739282,1780360232000,-500.0,9.597e-05,2]
[423739284,1780360232000,-500.0,9.597e-05,2]
[423739286,1780360232000,-500.0,9.597e-05,2]
[423739283,1780360232000,-500.0,9.597e-05,2]
[423739285,1780360232000,-500.0,9.597e-05,2]
[423739280,1780360232000,-500.0,9.597e-05,2]
[423739279,1780360232000,-500.0,9.597e-05,2]
[423739277,1780360232000,-500.0,9.597e-05,2]
[423739273,1780360232000,-200.18854949,9.597e-05,2]
[423739270,1780360232000,-364.98884934,9.411e-05,2]
[423739272,1780360232000,-500.0,9.597e-05,2]
[423739281,1780360232000,-500.0,9.597e-05,2]
[423739275,1780360232000,-500.0,9.597e-05,2]
[423739274,1780360232000,-500.0,9.597e-05,2]
[423739269,1780360232000,-9573.80399813,9.123e-05,2]
[423739267,1780360232000,-1200.0,9.122e-05,2]
[423739268,1780360232000,-426.19600187,9.123e-05,2]
[423739265,1780360232000,-0.78640997,9.023e-05,2]
[423739266,1780360232000,-300.0,9.122e-05,2]
[423739276,1780360232000,-500.0,9.597e-05,2]
[423739263,1780360232000,-4430.75461219,8.844e-05,2]
[423739264,1780360232000,-35.24903797,8.933e-05,2]
[423739271,1780360232000,-500.0,9.597e-05,2]
[423739287,1780360232000,-500.0,9.597e-05,2]
[423739302,1780360232000,-500.0,9.597e-05,2]
[423739290,1780360232000,-500.0,9.597e-05,2]
[423739312,1780360232000,-300.0,9.598e-05,2]
[423739313,1780360232000,-95.52961778,9.598e-05,2]
[423739311,1780360232000,-300.0,9.598e-05,2]
[423739310,1780360232000,-300.0,9.598e-05,2]
[423739304,1780360232000,-300.0,9.598e-05,2]
[423739308,1780360232000,-300.0,9.598e-05,2]
[423739309,1780360232000,-300.0,9.598e-05,2]
[423739306,1780360232000,-300.0,9.598e-05,2]
[423739305,1780360232000,-300.0,9.598e-05,2]
[423739307,1780360232000,-300.0,9.598e-05,2]
[423739301,1780360232000,-500.0,9.597e-05,2]
[423739303,1780360232000,-300.0,9.598e-05,2]
[423739299,1780360232000,-198.40437498,9.597e-05,2]
[423739288,1780360232000,-366.09981462,9.597e-05,2]
[423739289,1780360232000,-500.0,9.597e-05,2]
[423739293,1780360232000,-500.0,9.597e-05,2]
[423739300,1780360232000,-500.0,9.597e-05,2]
[423739296,1780360232000,-500.0,9.597e-05,2]
[423739292,1780360232000,-500.0,9.597e-05,2]
[423739295,1780360232000,-500.0,9.597e-05,2]
[423739297,1780360232000,-500.0,9.597e-05,2]
[423739291,1780360232000,-500.0,9.597e-05,2]
[423739298,1780360232000,-500.0,9.597e-05,2]
[423739294,1780360232000,-500.0,9.597e-05,2]
[423739325,1780360238000,-204.47038222,9.598e-05,2]
[423739324,1780360238000,-349.11268212,9.502e-05,2]
[423739332,1780360238000,-600.0,9.789e-05,2]
[423739328,1780360238000,-300.0,9.598e-05,2]
[423739329,1780360238000,-300.0,9.598e-05,2]
[423739327,1780360238000,-300.0,9.598e-05,2]
[423739326,1780360238000,-300.0,9.598e-05,2]
[423739331,1780360238000,-151.0,9.699e-05,2]
[423739330,1780360238000,-428.745058,9.677e-05,2]
[423739333,1780360238000,-2175.87032498,0.0001,2]
[423739334,1780360238000,-1765.42483528,0.0001,2]
[423739362,1780360239000,-8860.5,0.00012329,2]
[423739363,1780360239000,-7383.75,0.00012329,2]
[423739369,1780360239000,-2220.96302437,0.00012801,2]
[423739364,1780360239000,-151.0,0.000125,2]
[423739366,1780360239000,-151.0,0.000126,2]
[423739367,1780360239000,-151.0,0.000127,2]
[423739361,1780360239000,-10632.6,0.00012329,2]
[423739365,1780360239000,-2220.96302437,0.00012501,2]
[423739371,1780360239000,-151.0,0.000129,2]
[423739376,1780360239000,-1000.0,0.00013029,2]
[423739374,1780360239000,-151.0,0.00013,2]
[423739380,1780360239000,-152.0,0.00013197,7]
[423739360,1780360239000,-12759.12,0.00012329,2]
[423739383,1780360239000,-152.0,0.00013197,7]
[423739387,1780360239000,-2305.27550682,0.000132,2]
[423739407,1780360239000,-151.0,0.0001329,2]
[423739391,1780360239000,-500.0,0.00013261,2]
[423739385,1780360239000,-151.0,0.000132,2]
[423739389,1780360239000,-152.0,0.00013201,7]
[423739393,1780360239000,-151.0,0.0001329,2]
[423739403,1780360239000,-151.0,0.0001329,2]
[423739405,1780360239000,-151.0,0.0001329,2]
[423739378,1780360239000,-2220.96302437,0.00013101,2]
[423739356,1780360239000,-151.0,0.000123,2]
[423739339,1780360239000,-288.71041355,0.00010082,2]
[423739359,1780360239000,-15310.95,0.00012329,2]
[423739409,1780360239000,-151.0,0.0001329,2]
[423739335,1780360239000,-7901.4692074,0.0001,2]
[423739337,1780360239000,-11050.0,0.0001,2]
[423739348,1780360239000,-864.0,0.00011845,2]
[423739340,1780360239000,-15411.1642325,0.00010083,2]
[423739336,1780360239000,-200.8478241,0.0001,2]
[423739345,1780360239000,-428.745058,0.00011307,2]
[423739338,1780360239000,-420.0,0.00010035,2]
[423739347,1780360239000,-428.745058,0.00011714,2]
[423739346,1780360239000,-42230.12888899,0.000115,2]
[423739355,1780360239000,-325.08711468,0.00012202,2]
[423739341,1780360239000,-428.745058,0.00010085,2]
[423739344,1780360239000,-428.745058,0.00010899,2]
[423739342,1780360239000,-428.745058,0.00010492,2]
[423739350,1780360239000,-151.0,0.000119,2]
[423739357,1780360239000,-20857.82,0.00012329,2]
[423739352,1780360239000,-151.0,0.00012,2]
[423739351,1780360239000,-109421.53852743,0.00012,2]
[423739353,1780360239000,-151.0,0.000122,2]
[423739349,1780360239000,-2220.9630244,0.000119,2]
[423739354,1780360239000,-2220.96302437,0.000122,2]
[423739358,1780360239000,-18373.14,0.00012329,2]
[423739343,1780360239000,-720.0,0.00010768,2]
[423739394,1780360239000,-151.0,0.0001329,2]
[423739464,1780360239000,-500.0,0.00013698,2]
[423739395,1780360239000,-151.0,0.0001329,2]
[423739456,1780360239000,-939.11086948,0.00013474,2]
[423739455,1780360239000,-426.37,0.00013474,2]
[423739457,1780360239000,-439.16,0.00013489,2]
[423739465,1780360239000,-500.0,0.00013698,2]
[423739466,1780360239000,-568.18437267,0.00013698,2]
[423739462,1780360239000,-152.0,0.00013534,2]
[423739459,1780360239000,-455.03,0.00013507,2]
[423739467,1780360239000,-500.0,0.00013698,2]
[423739470,1780360239000,-500.0,0.00013698,2]
[423739460,1780360239000,-478.37,0.00013521,2]
[423739452,1780360239000,-2183.8010104,0.00013466,2]
[423739468,1780360239000,-163.88,0.00013698,2]
[423739471,1780360239000,-500.0,0.00013698,2]
[423739461,1780360239000,-460.19,0.00013521,2]
[423739472,1780360239000,-500.0,0.00013698,2]
[423739475,1780360239000,-500.0,0.00013698,2]
[423739478,1780360239000,-500.0,0.00013698,2]
[423739477,1780360239000,-500.0,0.00013698,2]
[423739473,1780360239000,-500.0,0.00013698,2]
[423739476,1780360239000,-500.0,0.00013698,2]
[423739474,1780360239000,-500.0,0.00013698,2]
[423739397,1780360239000,-151.0,0.0001329,2]
[423739469,1780360239000,-166.73327584,0.00013698,2]
[423739454,1780360239000,-1253.4601112,0.00013466,2]
[423739463,1780360239000,-504.57813918,0.00013698,2]
[423739458,1780360239000,-1039.38964965,0.000135,3]
[423739399,1780360239000,-151.0,0.0001329,2]
[423739453,1780360239000,-163.8954543,0.00013466,2]
[423739401,1780360239000,-151.0,0.0001329,2]
[423739414,1780360239000,-151.0,0.00013298,2]
[423739412,1780360239000,-189.62753176,0.0001329,2]
[423739416,1780360239000,-151.0,0.00013298,2]
[423739420,1780360239000,-5578.401852,0.00013298,2]
[423739428,1780360239000,-151.0,0.000133,2]
[423739418,1780360239000,-5578.401852,0.00013298,2]
[423739425,1780360239000,-5578.401852,0.00013298,2]
[423739432,1780360239000,-151.0,0.000133,2]
[423739430,1780360239000,-151.0,0.000133,2]
[423739423,1780360239000,-5578.401852,0.00013298,2]
[423739439,1780360239000,-151.0,0.000133,2]
[423739450,1780360239000,-481.51,0.00013461,2]
[423739446,1780360239000,-151.0,0.000133,2]
[423739448,1780360239000,-468.32,0.00013448,2]
[423739443,1780360239000,-151.0,0.000133,2]
[423739437,1780360239000,-151.0,0.000133,2]
[423739451,1780360239000,-1204.7765318,0.00013466,2]
[423739445,1780360239000,-151.0,0.000133,2]
[423739449,1780360239000,-472.67,0.00013452,2]
[423739442,1780360239000,-151.0,0.000133,2]
[423739434,1780360239000,-151.0,0.000133,2]
[423739517,1780360240000,-500.0,0.00013698,2]
[423739530,1780360240000,-500.0,0.00013698,2]
[423739527,1780360240000,-190.3,0.00013698,2]
[423739526,1780360240000,-500.0,0.00013698,2]
[423739540,1780360240000,-500.0,0.00013698,2]
[423739520,1780360240000,-500.0,0.00013698,2]
[423739524,1780360240000,-500.0,0.00013698,2]
[423739521,1780360240000,-568.87424883,0.00013698,2]
[423739515,1780360240000,-500.0,0.00013698,2]
[423739514,1780360240000,-500.0,0.00013698,2]
[423739518,1780360240000,-500.0,0.00013698,2]
[423739531,1780360240000,-501.68019743,0.00013698,2]
[423739522,1780360240000,-500.0,0.00013698,2]
[423739529,1780360240000,-500.0,0.00013698,2]
[423739553,1780360240000,-500.0,0.00013698,2]
[423739542,1780360240000,-500.0,0.00013698,2]
[423739536,1780360240000,-500.0,0.00013698,2]
[423739544,1780360240000,-500.0,0.00013698,2]
[423739548,1780360240000,-500.0,0.00013698,2]
[423739546,1780360240000,-501.71949485,0.00013698,2]
[423739537,1780360240000,-500.0,0.00013698,2]
[423739534,1780360240000,-500.0,0.00013698,2]
[423739539,1780360240000,-500.0,0.00013698,2]
[423739549,1780360240000,-500.22658779,0.00013698,2]
[423739551,1780360240000,-629.51686188,0.00013698,2]
[423739560,1780360240000,-500.0,0.00013698,2]
[423739562,1780360240000,-500.0,0.00013698,2]
[423739513,1780360240000,-500.0,0.00013698,2]
[423739555,1780360240000,-500.66530086,0.00013698,2]
[423739532,1780360240000,-290.79493899,0.00013698,2]
[423739512,1780360240000,-500.0,0.00013698,2]
[423739485,1780360240000,-500.0,0.00013698,2]
[423739510,1780360240000,-500.0,0.00013698,2]
[423739564,1780360240000,-500.22305158,0.00013698,2]
[423739482,1780360240000,-500.0,0.00013698,2]
[423739479,1780360240000,-500.0,0.00013698,2]
[423739484,1780360240000,-500.0,0.00013698,2]
[423739480,1780360240000,-500.0,0.00013698,2]
[423739481,1780360240000,-500.0,0.00013698,2]
[423739483,1780360240000,-500.0,0.00013698,2]
[423739489,1780360240000,-500.0,0.00013698,2]
[423739495,1780360240000,-500.0,0.00013698,2]
[423739486,1780360240000,-500.0,0.00013698,2]
[423739488,1780360240000,-500.0,0.00013698,2]
[423739490,1780360240000,-500.0,0.00013698,2]
[423739487,1780360240000,-500.0,0.00013698,2]
[423739491,1780360240000,-500.0,0.00013698,2]
[423739511,1780360240000,-500.0,0.00013698,2]
[423739496,1780360240000,-500.0,0.00013698,2]
[423739494,1780360240000,-500.0,0.00013698,2]
[423739492,1780360240000,-500.0,0.00013698,2]
[423739500,1780360240000,-500.0,0.00013698,2]
[423739497,1780360240000,-500.0,0.00013698,2]
[423739509,1780360240000,-500.0,0.00013698,2]
[423739501,1780360240000,-500.0,0.00013698,2]
[423739507,1780360240000,-500.0,0.00013698,2]
[423739502,1780360240000,-596.10476254,0.00013698,2]
[423739499,1780360240000,-500.0,0.00013698,2]
[423739498,1780360240000,-500.0,0.00013698,2]
[423739506,1780360240000,-500.0,0.00013698,2]
[423739505,1780360240000,-500.0,0.00013698,2]
[423739504,1780360240000,-500.0,0.00013698,2]
[423739503,1780360240000,-598.83,0.00013698,2]
[423739493,1780360240000,-500.0,0.00013698,2]
[423739568,1780360240000,-537.71,0.00013698,2]
[423739508,1780360240000,-495.0,0.00013698,2]
[423739557,1780360240000,-500.0,0.00013698,2]
[423739632,1780360240000,-500.0,0.00013698,2]
[423739629,1780360240000,-574.06,0.00013698,2]
[423739627,1780360240000,-500.0,0.00013698,2]
[423739623,1780360240000,-500.0,0.00013698,2]
[423739620,1780360240000,-500.0,0.00013698,2]
[423739624,1780360240000,-500.0,0.00013698,2]
[423739626,1780360240000,-595.737666,0.00013698,2]
[423739628,1780360240000,-511.53,0.00013698,2]
[423739653,1780360240000,-500.0,0.00013698,2]
[423739625,1780360240000,-500.0,0.00013698,2]
[423739630,1780360240000,-500.0,0.00013698,2]
[423739634,1780360240000,-331.8787889,0.00013698,2]
[423739645,1780360240000,-500.0,0.00013698,2]
[423739644,1780360240000,-500.0,0.00013698,2]
[423739622,1780360240000,-1034.24,0.00013698,2]
[423739646,1780360240000,-500.0,0.00013698,2]
[423739636,1780360240000,-542.42,0.00013698,2]
[423739638,1780360240000,-500.0,0.00013698,2]
[423739642,1780360240000,-500.0,0.00013698,2]
[423739633,1780360240000,-500.0,0.00013698,2]
[423739637,1780360240000,-500.0,0.00013698,2]
[423739639,1780360240000,-500.0,0.00013698,2]
[423739641,1780360240000,-476.57965662,0.00013698,2]
[423739640,1780360240000,-500.0,0.00013698,2]
[423739643,1780360240000,-500.0,0.00013698,2]
[423739648,1780360240000,-303.26301509,0.00013698,2]
[423739650,1780360240000,-500.0,0.00013698,2]
[423739651,1780360240000,-500.0,0.00013698,2]
[423739649,1780360240000,-500.0,0.00013698,2]
[423739652,1780360240000,-500.0,0.00013698,2]
[423739647,1780360240000,-500.0,0.00013698,2]
[423739621,1780360240000,-500.0,0.00013698,2]
[423739559,1780360240000,-500.0,0.00013698,2]
[423739615,1780360240000,-592.09759767,0.00013698,2]
[423739566,1780360240000,-500.0,0.00013698,2]
[423739569,1780360240000,-189.7669307,0.00013698,2]
[423739571,1780360240000,-500.0,0.00013698,2]
[423739573,1780360240000,-500.0,0.00013698,2]
[423739578,1780360240000,-500.0,0.00013698,2]
[423739577,1780360240000,-500.0,0.00013698,2]
[423739580,1780360240000,-500.0,0.00013698,2]
[423739575,1780360240000,-500.0,0.00013698,2]
[423739619,1780360240000,-500.0,0.00013698,2]
[423739582,1780360240000,-918.08,0.00013698,2]
[423739590,1780360240000,-500.0,0.00013698,2]
[423739586,1780360240000,-814.52,0.00013698,2]
[423739588,1780360240000,-500.0,0.00013698,2]
[423739584,1780360240000,-500.0,0.00013698,2]
[423739592,1780360240000,-500.0,0.00013698,2]
[423739593,1780360240000,-500.0,0.00013698,2]
[423739597,1780360240000,-500.0,0.00013698,2]
[423739595,1780360240000,-500.0,0.00013698,2]
[423739614,1780360240000,-500.0,0.00013698,2]
[423739613,1780360240000,-500.0,0.00013698,2]
[423739617,1780360240000,-215.36896233,0.00013698,2]
[423739618,1780360240000,-196.38305141,0.00013698,2]
[423739610,1780360240000,-500.0,0.00013698,2]
[423739612,1780360240000,-500.0,0.00013698,2]
[423739608,1780360240000,-500.0,0.00013698,2]
[423739606,1780360240000,-500.0,0.00013698,2]
[423739604,1780360240000,-500.0,0.00013698,2]
[423739603,1780360240000,-500.0,0.00013698,2]
[423739601,1780360240000,-500.0,0.00013698,2]
[423739599,1780360240000,-500.0,0.00013698,2]
[423739616,1780360240000,-500.0,0.00013698,2]
[423739694,1780360241000,-500.0,0.00013698,2]
[423739696,1780360241000,-500.0,0.00013698,2]
[423739697,1780360241000,-500.0,0.00013698,2]
[423739693,1780360241000,-500.0,0.00013698,2]
[423739699,1780360241000,-500.0,0.00013698,2]
[423739689,1780360241000,-500.0,0.00013698,2]
[423739698,1780360241000,-500.0,0.00013698,2]
[423739691,1780360241000,-500.0,0.00013698,2]
[423739690,1780360241000,-500.0,0.00013698,2]
[423739692,1780360241000,-500.0,0.00013698,2]
[423739687,1780360241000,-500.0,0.00013698,2]
[423739688,1780360241000,-500.0,0.00013698,2]
[423739695,1780360241000,-500.0,0.00013698,2]
[423739714,1780360241000,-554.4,0.00013698,2]
[423739727,1780360241000,-554.4,0.00013698,2]
[423739713,1780360241000,-500.0,0.00013698,2]
[423739700,1780360241000,-500.0,0.00013698,2]
[423739728,1780360241000,-554.4,0.00013698,2]
[423739716,1780360241000,-554.4,0.00013698,2]
[423739708,1780360241000,-433.22218445,0.00013698,2]
[423739711,1780360241000,-554.4,0.00013698,2]
[423739705,1780360241000,-500.0,0.00013698,2]
[423739702,1780360241000,-500.0,0.00013698,2]
[423739706,1780360241000,-554.4,0.00013698,2]
[423739710,1780360241000,-554.4,0.00013698,2]
[423739709,1780360241000,-554.4,0.00013698,2]
[423739704,1780360241000,-500.0,0.00013698,2]
[423739703,1780360241000,-500.0,0.00013698,2]
[423739701,1780360241000,-500.0,0.00013698,2]
[423739712,1780360241000,-554.4,0.00013698,2]
[423739707,1780360241000,-554.4,0.00013698,2]
[423739685,1780360241000,-500.0,0.00013698,2]
[423739666,1780360241000,-500.0,0.00013698,2]
[423739683,1780360241000,-500.0,0.00013698,2]
[423739715,1780360241000,-554.4,0.00013698,2]
[423739654,1780360241000,-500.0,0.00013698,2]
[423739658,1780360241000,-500.0,0.00013698,2]
[423739657,1780360241000,-645.30411298,0.00013698,2]
[423739660,1780360241000,-500.0,0.00013698,2]
[423739659,1780360241000,-500.0,0.00013698,2]
[423739655,1780360241000,-500.0,0.00013698,2]
[423739656,1780360241000,-361.2370534,0.00013698,2]
[423739662,1780360241000,-500.0,0.00013698,2]
[423739672,1780360241000,-200.23490377,0.00013698,2]
[423739673,1780360241000,-500.0,0.00013698,2]
[423739674,1780360241000,-500.0,0.00013698,2]
[423739661,1780360241000,-500.0,0.00013698,2]
[423739663,1780360241000,-500.0,0.00013698,2]
[423739680,1780360241000,-500.0,0.00013698,2]
[423739664,1780360241000,-500.0,0.00013698,2]
[423739669,1780360241000,-500.0,0.00013698,2]
[423739668,1780360241000,-500.0,0.00013698,2]
[423739665,1780360241000,-592.83274037,0.00013698,2]
[423739667,1780360241000,-500.0,0.00013698,2]
[423739670,1780360241000,-500.0,0.00013698,2]
[423739675,1780360241000,-500.0,0.00013698,2]
[423739686,1780360241000,-500.0,0.00013698,2]
[423739678,1780360241000,-500.0,0.00013698,2]
[423739677,1780360241000,-500.0,0.00013698,2]
[423739676,1780360241000,-500.0,0.00013698,2]
[423739679,1780360241000,-500.0,0.00013698,2]
[423739681,1780360241000,-500.0,0.00013698,2]
[423739682,1780360241000,-500.0,0.00013698,2]
[423739684,1780360241000,-500.0,0.00013698,2]
[423739671,1780360241000,-500.0,0.00013698,2]
[423739726,1780360241000,-554.4,0.00013698,2]
[423739718,1780360241000,-554.4,0.00013698,2]
[423739717,1780360241000,-500.0,0.00013698,2]
[423739753,1780360241000,-500.0,0.00013698,2]
[423739758,1780360241000,-500.0,0.00013698,2]
[423739759,1780360241000,-500.0,0.00013698,2]
[423739770,1780360241000,-151.0,0.00013698,2]
[423739771,1780360241000,-151.0,0.00013698,2]
[423739769,1780360241000,-500.0,0.00013698,2]
[423739768,1780360241000,-500.0,0.00013698,2]
[423739767,1780360241000,-151.0,0.00013698,2]
[423739760,1780360241000,-500.0,0.00013698,2]
[423739763,1780360241000,-500.0,0.00013698,2]
[423739765,1780360241000,-506.268184,0.00013698,2]
[423739762,1780360241000,-500.0,0.00013698,2]
[423739761,1780360241000,-500.0,0.00013698,2]
[423739764,1780360241000,-500.0,0.00013698,2]
[423739752,1780360241000,-500.0,0.00013698,2]
[423739766,1780360241000,-151.0,0.00013698,2]
[423739772,1780360241000,-500.0,0.00013698,2]
[423739775,1780360241000,-500.0,0.00013698,2]
[423739776,1780360241000,-500.0,0.00013698,2]
[423739774,1780360241000,-623.41,0.00013698,2]
[423739778,1780360241000,-500.0,0.00013698,2]
[423739780,1780360241000,-500.0,0.00013698,2]
[423739779,1780360241000,-500.0,0.00013698,2]
[423739777,1780360241000,-500.0,0.00013698,2]
[423739781,1780360241000,-500.0,0.00013698,2]
[423739782,1780360241000,-500.0,0.00013698,2]
[423739783,1780360241000,-500.0,0.00013698,2]
[423739786,1780360241000,-500.0,0.00013698,2]
[423739784,1780360241000,-500.0,0.00013698,2]
[423739785,1780360241000,-500.0,0.00013698,2]
[423739773,1780360241000,-500.0,0.00013698,2]